[Event "Titled Tuesday Blitz July 13 2021"]
[White "Janaszak, Dawid"]
[Black "Bugayev, Vladimir"]
[WhiteFideId "1119206"]
[BlackFideId "30901480"]
[WhiteElo "2332"]
[BlackElo "2363"]
[Result "1-0"]
[Round "10"]
[TimeControl "180+1"]
[Date "2021.07.13"]
[WhiteClock "0:01:35"]
[BlackClock "0:00:34"]

1. e4 {[%clk 0:03:00]}  c6 {[%clk 0:02:59]} 2. d4 {[%clk 0:03:00]}  d5 {[%clk 0:03:00]} 3. exd5 {[%clk 0:03:01]}  cxd5 {[%clk 0:03:00]} 4. Bd3 {[%clk 0:03:01]}  Nc6 {[%clk 0:03:01]} 5. c3 {[%clk 0:03:02]}  Nf6 {[%clk 0:03:00]} 6. Bf4 {[%clk 0:03:01]}  Bg4 {[%clk 0:03:00]} 7. Qb3 {[%clk 0:02:59]}  Qd7 {[%clk 0:03:01]} 8. Nd2 {[%clk 0:02:58]}  e6 {[%clk 0:03:01]} 9. Ngf3 {[%clk 0:02:58]}  Bd6 {[%clk 0:03:02]} 10. Bxd6 {[%clk 0:02:58]}  Qxd6 {[%clk 0:03:03]} 11. O-O {[%clk 0:02:58]}  O-O {[%clk 0:03:03]} 12. Rae1 {[%clk 0:02:58]}  Ne7 {[%clk 0:03:03]} 13. Ne5 {[%clk 0:02:43]}  Bf5 {[%clk 0:03:02]} 14. Ndf3 {[%clk 0:02:39]}  Bxd3 {[%clk 0:02:42]} 15. Nxd3 {[%clk 0:02:40]}  Ne4 {[%clk 0:02:38]} 16. Re2 {[%clk 0:02:26]}  Qc7 {[%clk 0:02:21]} 17. Nd2 {[%clk 0:02:18]}  Nxd2 {[%clk 0:02:16]} 18. Rxd2 {[%clk 0:02:19]}  Nf5 {[%clk 0:02:16]} 19. g3 {[%clk 0:02:10]}  Nd6 {[%clk 0:02:12]} 20. f3 {[%clk 0:02:10]}  Qc4 {[%clk 0:01:45]} 21. Ne5 {[%clk 0:02:07]}  Qxb3 {[%clk 0:01:40]} 22. axb3 {[%clk 0:02:08]}  Rfc8 {[%clk 0:01:35]} 23. Ra1 {[%clk 0:02:07]}  a6 {[%clk 0:01:36]} 24. Kf2 {[%clk 0:02:03]}  f6 {[%clk 0:01:05]} 25. Nd7 {[%clk 0:02:03]}  Rc6 {[%clk 0:01:00]} 26. Nc5 {[%clk 0:01:57]}  Rac8 {[%clk 0:00:51]} 27. Nxe6 {[%clk 0:01:45]}  b6 {[%clk 0:00:49]} 28. Nf4 {[%clk 0:01:45]}  Nf5 {[%clk 0:00:41]} 29. Nxd5 {[%clk 0:01:44]}  Re8 {[%clk 0:00:39]} 30. Nb4 {[%clk 0:01:43]}  Rce6 {[%clk 0:00:38]} 31. d5 {[%clk 0:01:42]}  Re3 {[%clk 0:00:34]} 32. d6 {[%clk 0:01:35]} 1-0


[Site "https://www.chess.com"]

[Event "Titled Tuesday Blitz July 13 2021"]
[White "Jarovinsky, Alexey"]
[Black "Paravyan, David"]
[WhiteFideId "14115131"]
[BlackFideId "4194985"]
[WhiteElo "2446"]
[BlackElo "2562"]
[Result "1/2-1/2"]
[Round "10"]
[TimeControl "180+1"]
[Date "2021.07.13"]
[WhiteClock "0:00:11"]
[BlackClock "0:00:14"]

1. Nc3 {[%clk 0:03:00]}  d5 {[%clk 0:02:59]} 2. e4 {[%clk 0:03:00]}  dxe4 {[%clk 0:02:59]} 3. Nxe4 {[%clk 0:02:59]}  Nf6 {[%clk 0:03:00]} 4. d3 {[%clk 0:02:57]}  Nxe4 {[%clk 0:02:59]} 5. dxe4 {[%clk 0:02:58]}  Qxd1+ {[%clk 0:03:00]} 6. Kxd1 {[%clk 0:02:59]}  e5 {[%clk 0:03:00]} 7. Be3 {[%clk 0:02:57]}  Be6 {[%clk 0:02:59]} 8. Nf3 {[%clk 0:02:57]}  f6 {[%clk 0:02:58]} 9. Nd2 {[%clk 0:02:57]}  Nd7 {[%clk 0:02:48]} 10. Bc4 {[%clk 0:02:56]}  Kf7 {[%clk 0:02:48]} 11. Ke2 {[%clk 0:02:46]}  Bc5 {[%clk 0:02:46]} 12. Bxe6+ {[%clk 0:02:34]}  Kxe6 {[%clk 0:02:44]} 13. Nb3 {[%clk 0:02:34]}  Bxe3 {[%clk 0:02:43]} 14. Kxe3 {[%clk 0:02:35]}  a5 {[%clk 0:02:44]} 15. a4 {[%clk 0:02:31]}  b6 {[%clk 0:02:38]} 16. Rhd1 {[%clk 0:02:26]}  Rad8 {[%clk 0:02:33]} 17. Rd3 {[%clk 0:02:21]}  Nb8 {[%clk 0:02:32]} 18. Rad1 {[%clk 0:02:20]}  Rxd3+ {[%clk 0:02:32]} 19. Rxd3 {[%clk 0:02:21]}  Nc6 {[%clk 0:02:31]} 20. c3 {[%clk 0:02:20]}  g6 {[%clk 0:02:29]} 21. Nd2 {[%clk 0:02:16]}  f5 {[%clk 0:02:15]} 22. Nc4 {[%clk 0:02:11]}  Rf8 {[%clk 0:02:07]} 23. Na3 {[%clk 0:01:48]}  fxe4 {[%clk 0:01:55]} 24. Rd2 {[%clk 0:01:47]}  Ne7 {[%clk 0:01:53]} 25. g3 {[%clk 0:01:41]}  Nf5+ {[%clk 0:01:46]} 26. Kxe4 {[%clk 0:01:38]}  Nd6+ {[%clk 0:01:47]} 27. Ke3 {[%clk 0:01:38]}  e4 {[%clk 0:01:44]} 28. Ke2 {[%clk 0:01:18]}  c5 {[%clk 0:01:18]} 29. Nb5 {[%clk 0:01:10]}  Nxb5 {[%clk 0:00:55]} 30. axb5 {[%clk 0:01:11]}  a4 {[%clk 0:00:55]} 31. Ke3 {[%clk 0:01:01]}  a3 {[%clk 0:00:51]} 32. bxa3 {[%clk 0:00:55]}  Rf3+ {[%clk 0:00:47]} 33. Kxe4 {[%clk 0:00:52]}  Rxc3 {[%clk 0:00:48]} 34. Rd8 {[%clk 0:00:38]}  Rxa3 {[%clk 0:00:38]} 35. Rb8 {[%clk 0:00:36]}  Ra4+ {[%clk 0:00:37]} 36. Ke3 {[%clk 0:00:35]}  Kd5 {[%clk 0:00:34]} 37. Rxb6 {[%clk 0:00:34]}  Ra3+ {[%clk 0:00:34]} 38. Kf4 {[%clk 0:00:23]}  c4 {[%clk 0:00:34]} 39. Rb8 {[%clk 0:00:19]}  Rb3 {[%clk 0:00:12]} 40. b6 {[%clk 0:00:19]}  c3 {[%clk 0:00:07]} 41. b7 {[%clk 0:00:15]}  Kc6 {[%clk 0:00:05]} 42. Ke3 {[%clk 0:00:09]}  Kc7 {[%clk 0:00:03]} 43. Rc8+ {[%clk 0:00:08]}  Kxb7 {[%clk 0:00:03]} 44. Rc4 {[%clk 0:00:07]}  Kb6 {[%clk 0:00:02]} 45. Kd3 {[%clk 0:00:06]}  c2+ {[%clk 0:00:03]} 46. Kxc2 {[%clk 0:00:05]}  Rf3 {[%clk 0:00:03]} 47. Rf4 {[%clk 0:00:05]}  Ra3 {[%clk 0:00:03]} 48. Kd2 {[%clk 0:00:02]}  Kc5 {[%clk 0:00:03]} 49. Ke2 {[%clk 0:00:03]}  Ra7 {[%clk 0:00:04]} 50. Kf1 {[%clk 0:00:03]}  Kd5 {[%clk 0:00:04]} 51. Kg2 {[%clk 0:00:04]}  Ke6 {[%clk 0:00:05]} 52. Rf3 {[%clk 0:00:04]}  Rb7 {[%clk 0:00:05]} 53. h4 {[%clk 0:00:05]}  Ra7 {[%clk 0:00:06]} 54. Rf4 {[%clk 0:00:05]}  h5 {[%clk 0:00:06]} 55. Rf3 {[%clk 0:00:06]}  Rb7 {[%clk 0:00:06]} 56. Rf4 {[%clk 0:00:06]}  Ra7 {[%clk 0:00:06]} 57. Re4+ {[%clk 0:00:06]}  Kf5 {[%clk 0:00:06]} 58. Re3 {[%clk 0:00:07]}  Kf6 {[%clk 0:00:07]} 59. Kf3 {[%clk 0:00:07]}  Kg7 {[%clk 0:00:07]} 60. Kf4 {[%clk 0:00:08]}  Rf7+ {[%clk 0:00:08]} 61. Ke4 {[%clk 0:00:07]}  Rxf2 {[%clk 0:00:09]} 62. Rf3 {[%clk 0:00:07]}  Ra2 {[%clk 0:00:09]} 63. Kf4 {[%clk 0:00:06]}  Kf6 {[%clk 0:00:07]} 64. Ke4+ {[%clk 0:00:06]}  Ke6 {[%clk 0:00:07]} 65. Rd3 {[%clk 0:00:06]}  Rf2 {[%clk 0:00:06]} 66. Rf3 {[%clk 0:00:06]}  Re2+ {[%clk 0:00:05]} 67. Kf4 {[%clk 0:00:05]}  Re5 {[%clk 0:00:03]} 68. Re3 {[%clk 0:00:05]}  Rxe3 {[%clk 0:00:03]} 69. Kxe3 {[%clk 0:00:05]}  Kf5 {[%clk 0:00:04]} 70. Kf3 {[%clk 0:00:06]}  Ke5 {[%clk 0:00:05]} 71. g4 {[%clk 0:00:06]}  Kf6 {[%clk 0:00:05]} 72. gxh5 {[%clk 0:00:06]}  gxh5 {[%clk 0:00:06]} 73. Kf4 {[%clk 0:00:06]}  Kg6 {[%clk 0:00:07]} 74. Ke5 {[%clk 0:00:06]}  Kh7 {[%clk 0:00:08]} 75. Kf5 {[%clk 0:00:07]}  Kh8 {[%clk 0:00:08]} 76. Kg6 {[%clk 0:00:07]}  Kg8 {[%clk 0:00:09]} 77. Kxh5 {[%clk 0:00:08]}  Kh8 {[%clk 0:00:10]} 78. Kg6 {[%clk 0:00:08]}  Kg8 {[%clk 0:00:11]} 79. h5 {[%clk 0:00:09]}  Kh8 {[%clk 0:00:12]} 80. h6 {[%clk 0:00:10]}  Kg8 {[%clk 0:00:13]} 81. h7+ {[%clk 0:00:11]}  Kh8 {[%clk 0:00:14]} 82. Kh6 {[%clk 0:00:11]} 1/2-1/2


[Site "https://www.chess.com"]

[Event "Titled Tuesday Blitz July 13 2021"]
[White "Kanyamarala, Tarun"]
[Black "Kotepalli, Sai Nirupama"]
[WhiteFideId "45004714"]
[BlackFideId "5039444"]
[WhiteElo "2086"]
[BlackElo "2456"]
[Result "0-1"]
[Round "10"]
[TimeControl "180+1"]
[Date "2021.07.13"]
[WhiteClock "0:00:02"]
[BlackClock "0:00:34"]

1. e4 {[%clk 0:03:00]}  c5 {[%clk 0:02:59]} 2. Nc3 {[%clk 0:02:58]}  e6 {[%clk 0:02:59]} 3. Nge2 {[%clk 0:02:55]}  g6 {[%clk 0:02:57]} 4. d4 {[%clk 0:02:47]}  cxd4 {[%clk 0:02:56]} 5. Qxd4 {[%clk 0:02:46]}  Qf6 {[%clk 0:02:52]} 6. Bf4 {[%clk 0:02:26]}  Nc6 {[%clk 0:02:31]} 7. Qe3 {[%clk 0:02:06]}  a6 {[%clk 0:02:14]} 8. O-O-O {[%clk 0:01:59]}  Bg7 {[%clk 0:02:07]} 9. e5 {[%clk 0:01:43]}  Qd8 {[%clk 0:01:44]} 10. Ne4 {[%clk 0:01:34]}  Nge7 {[%clk 0:01:42]} 11. Nd6+ {[%clk 0:01:27]}  Kf8 {[%clk 0:01:41]} 12. Ng3 {[%clk 0:01:12]}  Qa5 {[%clk 0:01:35]} 13. Kb1 {[%clk 0:00:46]}  Nd5 {[%clk 0:01:31]} 14. Rxd5 {[%clk 0:00:41]}  Qxd5 {[%clk 0:01:25]} 15. Bc4 {[%clk 0:00:21]}  Qd4 {[%clk 0:01:24]} 16. Qf3 {[%clk 0:00:18]}  g5 {[%clk 0:01:09]} 17. Be3 {[%clk 0:00:12]}  Nxe5 {[%clk 0:01:08]} 18. Bxd4 {[%clk 0:00:12]}  Nxf3 {[%clk 0:01:07]} 19. Bxg7+ {[%clk 0:00:12]}  Kxg7 {[%clk 0:01:08]} 20. gxf3 {[%clk 0:00:12]}  f5 {[%clk 0:01:03]} 21. h4 {[%clk 0:00:12]}  b5 {[%clk 0:00:59]} 22. Bd3 {[%clk 0:00:09]}  gxh4 {[%clk 0:00:56]} 23. Rxh4 {[%clk 0:00:08]}  Rb8 {[%clk 0:00:50]} 24. c4 {[%clk 0:00:05]}  bxc4 {[%clk 0:00:47]} 25. Bxc4 {[%clk 0:00:04]}  Rb6 {[%clk 0:00:44]} 26. Ndxf5+ {[%clk 0:00:02]}  exf5 {[%clk 0:00:43]} 27. Nxf5+ {[%clk 0:00:02]}  Kf8 {[%clk 0:00:40]} 28. Rf4 {[%clk 0:00:02]}  Rf6 {[%clk 0:00:39]} 29. Bd3 {[%clk 0:00:02]}  d5 {[%clk 0:00:38]} 30. Kc2 {[%clk 0:00:02]}  Rg8 {[%clk 0:00:36]} 31. Kc3 {[%clk 0:00:02]}  Rg5 {[%clk 0:00:34]} 0-1


[Site "https://www.chess.com"]

[Event "Titled Tuesday Blitz July 13 2021"]
[White "Karavaeva, Olga"]
[Black "Kim, Sergey"]
[WhiteFideId "4124111"]
[BlackFideId "13700570"]
[WhiteElo "2105"]
[BlackElo "2469"]
[Result "0-1"]
[Round "10"]
[TimeControl "180+1"]
[Date "2021.07.13"]
[WhiteClock "0:00:03"]
[BlackClock "0:00:14"]

1. c4 {[%clk 0:02:59]}  Nf6 {[%clk 0:02:58]} 2. Nc3 {[%clk 0:02:58]}  g6 {[%clk 0:02:58]} 3. g3 {[%clk 0:02:58]}  Bg7 {[%clk 0:02:58]} 4. Bg2 {[%clk 0:02:59]}  O-O {[%clk 0:02:58]} 5. d4 {[%clk 0:02:57]}  d6 {[%clk 0:02:58]} 6. Nf3 {[%clk 0:02:55]}  Nbd7 {[%clk 0:02:58]} 7. O-O {[%clk 0:02:55]}  e5 {[%clk 0:02:58]} 8. e4 {[%clk 0:02:55]}  exd4 {[%clk 0:02:58]} 9. Nxd4 {[%clk 0:02:56]}  Re8 {[%clk 0:02:58]} 10. h3 {[%clk 0:02:53]}  Nc5 {[%clk 0:02:57]} 11. Re1 {[%clk 0:02:49]}  c6 {[%clk 0:02:57]} 12. b3 {[%clk 0:02:44]}  a5 {[%clk 0:02:56]} 13. Kh2 {[%clk 0:02:39]}  Nfd7 {[%clk 0:02:54]} 14. Be3 {[%clk 0:02:36]}  Ne5 {[%clk 0:02:49]} 15. Qc2 {[%clk 0:02:34]}  Ned3 {[%clk 0:02:38]} 16. Red1 {[%clk 0:02:23]}  Nb4 {[%clk 0:02:38]} 17. Qe2 {[%clk 0:02:10]}  Qe7 {[%clk 0:02:29]} 18. Rd2 {[%clk 0:01:59]}  Ne6 {[%clk 0:02:21]} 19. Rad1 {[%clk 0:01:52]}  Nc5 {[%clk 0:02:19]} 20. f4 {[%clk 0:01:45]}  h6 {[%clk 0:02:13]} 21. Qf2 {[%clk 0:01:43]}  Nba6 {[%clk 0:02:03]} 22. Nde2 {[%clk 0:01:33]}  a4 {[%clk 0:01:51]} 23. bxa4 {[%clk 0:01:23]}  Bf8 {[%clk 0:01:40]} 24. h4 {[%clk 0:01:14]}  Bg4 {[%clk 0:01:38]} 25. Rb1 {[%clk 0:01:05]}  Bg7 {[%clk 0:01:32]} 26. Nd4 {[%clk 0:00:54]}  Nb8 {[%clk 0:01:19]} 27. Rdb2 {[%clk 0:00:37]}  Bc8 {[%clk 0:01:05]} 28. e5 {[%clk 0:00:32]}  Nd3 {[%clk 0:01:04]} 29. Qd2 {[%clk 0:00:30]}  Nxb2 {[%clk 0:01:02]} 30. Rxb2 {[%clk 0:00:31]}  dxe5 {[%clk 0:01:01]} 31. fxe5 {[%clk 0:00:31]}  Qxe5 {[%clk 0:00:54]} 32. Nd1 {[%clk 0:00:20]}  Nd7 {[%clk 0:00:45]} 33. Nf3 {[%clk 0:00:19]}  Qf6 {[%clk 0:00:33]} 34. Rb3 {[%clk 0:00:17]}  Ne5 {[%clk 0:00:30]} 35. Bxh6 {[%clk 0:00:16]}  Ng4+ {[%clk 0:00:29]} 36. Kg1 {[%clk 0:00:16]}  Bxh6 {[%clk 0:00:28]} 37. Ng5 {[%clk 0:00:16]}  Bxg5 {[%clk 0:00:26]} 38. hxg5 {[%clk 0:00:17]}  Qf5 {[%clk 0:00:26]} 39. Rf3 {[%clk 0:00:14]}  Qe6 {[%clk 0:00:25]} 40. Bf1 {[%clk 0:00:09]}  Qe1 {[%clk 0:00:22]} 41. Qc2 {[%clk 0:00:07]}  Bf5 {[%clk 0:00:17]} 42. Qb2 {[%clk 0:00:07]}  Qxd1 {[%clk 0:00:15]} 43. Rxf5 {[%clk 0:00:03]}  gxf5 {[%clk 0:00:14]} 0-1


[Site "https://www.chess.com"]

[Event "Titled Tuesday Blitz July 13 2021"]
[White "Khanin, Semen"]
[Black "Baskin, Robert"]
[WhiteFideId "4111990"]
[BlackFideId "24662402"]
[WhiteElo "2521"]
[BlackElo "2462"]
[Result "0-1"]
[Round "10"]
[TimeControl "180+1"]
[Date "2021.07.13"]
[WhiteClock "0:00:05"]
[BlackClock "0:00:03"]

1. e4 {[%clk 0:03:00]}  c5 {[%clk 0:02:58]} 2. Nf3 {[%clk 0:03:01]}  d6 {[%clk 0:02:59]} 3. Bb5+ {[%clk 0:03:00]}  Nd7 {[%clk 0:02:59]} 4. O-O {[%clk 0:02:59]}  a6 {[%clk 0:02:52]} 5. Bd3 {[%clk 0:02:58]}  Ngf6 {[%clk 0:02:52]} 6. c3 {[%clk 0:02:59]}  e6 {[%clk 0:02:44]} 7. Re1 {[%clk 0:02:59]}  b5 {[%clk 0:02:44]} 8. Bc2 {[%clk 0:02:53]}  c4 {[%clk 0:02:44]} 9. b3 {[%clk 0:02:52]}  Bb7 {[%clk 0:02:08]} 10. Na3 {[%clk 0:02:52]}  Rc8 {[%clk 0:02:01]} 11. Rb1 {[%clk 0:02:49]}  Ba8 {[%clk 0:01:50]} 12. Qe2 {[%clk 0:02:48]}  d5 {[%clk 0:01:32]} 13. exd5 {[%clk 0:02:46]}  Bxd5 {[%clk 0:01:33]} 14. bxc4 {[%clk 0:02:43]}  bxc4 {[%clk 0:01:33]} 15. d3 {[%clk 0:02:04]}  cxd3 {[%clk 0:01:18]} 16. Bxd3 {[%clk 0:02:04]}  Rxc3 {[%clk 0:01:17]} 17. Nc2 {[%clk 0:02:02]}  Bd6 {[%clk 0:01:15]} 18. Bb2 {[%clk 0:02:00]}  Rc7 {[%clk 0:01:09]} 19. Ne3 {[%clk 0:01:53]}  Bxf3 {[%clk 0:00:58]} 20. Qxf3 {[%clk 0:01:52]}  Ne5 {[%clk 0:00:59]} 21. Bxe5 {[%clk 0:01:45]}  Bxe5 {[%clk 0:01:00]} 22. Nf5 {[%clk 0:01:43]}  Rc5 {[%clk 0:00:22]} 23. Nxg7+ {[%clk 0:01:33]}  Kf8 {[%clk 0:00:22]} 24. Rbd1 {[%clk 0:00:53]}  Bxh2+ {[%clk 0:00:12]} 25. Kxh2 {[%clk 0:00:52]}  Kxg7 {[%clk 0:00:13]} 26. Kg1 {[%clk 0:00:47]}  Rg5 {[%clk 0:00:11]} 27. Bxa6 {[%clk 0:00:43]}  Qa5 {[%clk 0:00:11]} 28. Bc4 {[%clk 0:00:42]}  Rg8 {[%clk 0:00:11]} 29. g3 {[%clk 0:00:24]}  Rf5 {[%clk 0:00:11]} 30. Qe3 {[%clk 0:00:21]}  Kh8 {[%clk 0:00:09]} 31. Bb3 {[%clk 0:00:21]}  Qc7 {[%clk 0:00:07]} 32. Rc1 {[%clk 0:00:21]}  Qb8 {[%clk 0:00:06]} 33. Qc3 {[%clk 0:00:19]}  h6 {[%clk 0:00:06]} 34. Re4 {[%clk 0:00:17]}  Kh7 {[%clk 0:00:06]} 35. Rh4 {[%clk 0:00:17]}  Ng4 {[%clk 0:00:05]} 36. Qd2 {[%clk 0:00:17]}  Rg6 {[%clk 0:00:05]} 37. Rf1 {[%clk 0:00:16]}  Nxf2 {[%clk 0:00:04]} 38. Rxf2 {[%clk 0:00:07]}  Qxg3+ {[%clk 0:00:05]} 39. Kf1 {[%clk 0:00:05]}  Qxh4 {[%clk 0:00:04]} 40. Rxf5 {[%clk 0:00:05]}  exf5 {[%clk 0:00:04]} 41. Qf2 {[%clk 0:00:04]}  Qh1+ {[%clk 0:00:03]} 42. Ke2 {[%clk 0:00:05]}  Rg2 {[%clk 0:00:03]} 0-1


[Site "https://www.chess.com"]

[Event "Titled Tuesday Blitz July 13 2021"]
[White "Kubatko, Ivan"]
[Black "Koridze, Lile"]
[WhiteFideId "24111473"]
[BlackFideId "13612514"]
[WhiteElo "2285"]
[BlackElo "1978"]
[Result "1-0"]
[Round "10"]
[TimeControl "180+1"]
[Date "2021.07.13"]
[WhiteClock "0:00:22"]
[BlackClock "0:00:44"]

1. e4 {[%clk 0:03:00]}  c5 {[%clk 0:02:59]} 2. Nc3 {[%clk 0:02:58]}  Nc6 {[%clk 0:02:59]} 3. f4 {[%clk 0:02:57]}  a6 {[%clk 0:02:58]} 4. a4 {[%clk 0:02:56]}  e6 {[%clk 0:02:58]} 5. Nf3 {[%clk 0:02:56]}  d5 {[%clk 0:02:57]} 6. d3 {[%clk 0:02:55]}  Nf6 {[%clk 0:02:55]} 7. Be2 {[%clk 0:02:48]}  Be7 {[%clk 0:02:51]} 8. O-O {[%clk 0:02:48]}  O-O {[%clk 0:02:30]} 9. Qe1 {[%clk 0:02:40]}  dxe4 {[%clk 0:02:21]} 10. dxe4 {[%clk 0:02:40]}  Nd4 {[%clk 0:02:20]} 11. Bd1 {[%clk 0:02:39]}  Qc7 {[%clk 0:02:16]} 12. Kh1 {[%clk 0:02:18]}  b6 {[%clk 0:01:50]} 13. e5 {[%clk 0:02:18]}  Nd7 {[%clk 0:01:42]} 14. Ne4 {[%clk 0:02:15]}  Bb7 {[%clk 0:01:40]} 15. c3 {[%clk 0:02:13]}  Nc6 {[%clk 0:01:37]} 16. Bc2 {[%clk 0:02:05]}  h6 {[%clk 0:01:34]} 17. Qg3 {[%clk 0:01:53]}  Kh8 {[%clk 0:01:32]} 18. Qh3 {[%clk 0:01:45]}  Rad8 {[%clk 0:01:16]} 19. f5 {[%clk 0:01:34]}  Ndxe5 {[%clk 0:01:03]} 20. Bxh6 {[%clk 0:00:35]}  Kg8 {[%clk 0:00:57]} 21. f6 {[%clk 0:00:29]}  Ng6 {[%clk 0:00:45]} 22. Bxg7 {[%clk 0:00:21]}  Rfe8 {[%clk 0:00:44]} 23. Neg5 {[%clk 0:00:22]} 1-0


[Site "https://www.chess.com"]

[Event "Titled Tuesday Blitz July 13 2021"]
[White "Lauridsen, Jesper Morch"]
[Black "Rodriguez, Santiago"]
[WhiteFideId "1401890"]
[BlackFideId "3000591"]
[WhiteElo "2288"]
[BlackElo "2256"]
[Result "0-1"]
[Round "10"]
[TimeControl "180+1"]
[Date "2021.07.13"]
[WhiteClock "0:00:04"]
[BlackClock "0:00:10"]

1. e4 {[%clk 0:03:00]}  c5 {[%clk 0:02:59]} 2. Nf3 {[%clk 0:03:01]}  Nc6 {[%clk 0:02:59]} 3. d4 {[%clk 0:03:00]}  cxd4 {[%clk 0:02:59]} 4. Nxd4 {[%clk 0:03:01]}  e5 {[%clk 0:03:00]} 5. Nb5 {[%clk 0:02:59]}  d6 {[%clk 0:03:00]} 6. N1c3 {[%clk 0:02:59]}  a6 {[%clk 0:03:01]} 7. Na3 {[%clk 0:02:59]}  b5 {[%clk 0:03:02]} 8. Nd5 {[%clk 0:02:59]}  Nge7 {[%clk 0:03:02]} 9. c4 {[%clk 0:02:53]}  Nd4 {[%clk 0:03:02]} 10. cxb5 {[%clk 0:02:49]}  Nxd5 {[%clk 0:03:02]} 11. exd5 {[%clk 0:02:48]}  Be7 {[%clk 0:03:01]} 12. Bd3 {[%clk 0:02:47]}  O-O {[%clk 0:03:00]} 13. O-O {[%clk 0:02:46]}  f5 {[%clk 0:02:56]} 14. Be3 {[%clk 0:02:43]}  Nxb5 {[%clk 0:02:51]} 15. Nxb5 {[%clk 0:02:40]}  axb5 {[%clk 0:02:50]} 16. Bxb5 {[%clk 0:02:40]}  f4 {[%clk 0:02:50]} 17. Bd2 {[%clk 0:02:33]}  f3 {[%clk 0:02:49]} 18. g3 {[%clk 0:02:25]}  Qb6 {[%clk 0:02:46]} 19. a4 {[%clk 0:02:21]}  Qd4 {[%clk 0:02:45]} 20. Be3 {[%clk 0:02:07]}  Qg4 {[%clk 0:02:44]} 21. Re1 {[%clk 0:02:08]}  Rf5 {[%clk 0:01:59]} 22. Rc1 {[%clk 0:01:51]}  Ba6 {[%clk 0:01:49]} 23. Bxa6 {[%clk 0:01:42]}  Rxa6 {[%clk 0:01:47]} 24. Qd3 {[%clk 0:01:41]}  Rxa4 {[%clk 0:01:44]} 25. Rc8+ {[%clk 0:01:33]}  Bf8 {[%clk 0:01:43]} 26. Rec1 {[%clk 0:01:21]}  e4 {[%clk 0:01:34]} 27. Qb5 {[%clk 0:01:07]}  Rb4 {[%clk 0:01:06]} 28. Qd7 {[%clk 0:01:02]}  h5 {[%clk 0:00:51]} 29. h3 {[%clk 0:00:53]}  Qg6 {[%clk 0:00:32]} 30. Qe6+ {[%clk 0:00:49]}  Kh7 {[%clk 0:00:26]} 31. Qxg6+ {[%clk 0:00:25]}  Kxg6 {[%clk 0:00:26]} 32. R1c2 {[%clk 0:00:23]}  Be7 {[%clk 0:00:23]} 33. R8c6 {[%clk 0:00:20]}  Rxd5 {[%clk 0:00:22]} 34. Bf4 {[%clk 0:00:18]}  Bf6 {[%clk 0:00:20]} 35. Rxd6 {[%clk 0:00:16]}  Rxd6 {[%clk 0:00:20]} 36. Bxd6 {[%clk 0:00:16]}  Rxb2 {[%clk 0:00:20]} 37. Rxb2 {[%clk 0:00:16]}  Bxb2 {[%clk 0:00:20]} 38. Kh2 {[%clk 0:00:14]}  Kf5 {[%clk 0:00:19]} 39. g4+ {[%clk 0:00:11]}  hxg4 {[%clk 0:00:18]} 40. hxg4+ {[%clk 0:00:11]}  Ke6 {[%clk 0:00:18]} 41. Bc5 {[%clk 0:00:12]}  Be5+ {[%clk 0:00:15]} 42. Kh3 {[%clk 0:00:11]}  Kd5 {[%clk 0:00:16]} 43. Ba7 {[%clk 0:00:10]}  Bd4 {[%clk 0:00:15]} 44. Bxd4 {[%clk 0:00:09]}  Kxd4 {[%clk 0:00:15]} 45. Kg3 {[%clk 0:00:09]}  Kd3 {[%clk 0:00:15]} 46. g5 {[%clk 0:00:05]}  Ke2 {[%clk 0:00:11]} 47. g6 {[%clk 0:00:05]}  e3 {[%clk 0:00:10]} 48. fxe3 {[%clk 0:00:04]}  f2 {[%clk 0:00:10]} 0-1


[Site "https://www.chess.com"]

[Event "Titled Tuesday Blitz July 13 2021"]
[White "Le, Tuan Minh"]
[Black "Rustemov, Alexander"]
[WhiteFideId "12401153"]
[BlackFideId "4119002"]
[WhiteElo "2450"]
[BlackElo "2783"]
[Result "0-1"]
[Round "10"]
[TimeControl "180+1"]
[Date "2021.07.13"]
[WhiteClock "0:00:03"]
[BlackClock "0:00:08"]

1. d4 {[%clk 0:03:00]}  d5 {[%clk 0:02:59]} 2. Nf3 {[%clk 0:03:00]}  Nf6 {[%clk 0:02:59]} 3. Bf4 {[%clk 0:03:00]}  e6 {[%clk 0:02:59]} 4. e3 {[%clk 0:03:00]}  Bd6 {[%clk 0:03:00]} 5. Nbd2 {[%clk 0:03:00]}  O-O {[%clk 0:02:59]} 6. c3 {[%clk 0:03:01]}  b6 {[%clk 0:03:00]} 7. Bd3 {[%clk 0:03:01]}  Ba6 {[%clk 0:02:55]} 8. Bxa6 {[%clk 0:03:00]}  Nxa6 {[%clk 0:02:54]} 9. O-O {[%clk 0:03:01]}  Bxf4 {[%clk 0:02:49]} 10. exf4 {[%clk 0:03:01]}  c5 {[%clk 0:02:48]} 11. Qe2 {[%clk 0:03:01]}  Nb8 {[%clk 0:02:45]} 12. Rfe1 {[%clk 0:02:59]}  Nc6 {[%clk 0:02:44]} 13. Rad1 {[%clk 0:02:59]}  Qc7 {[%clk 0:02:37]} 14. g3 {[%clk 0:02:58]}  Rac8 {[%clk 0:02:32]} 15. Nf1 {[%clk 0:02:58]}  Ne7 {[%clk 0:02:29]} 16. Ne3 {[%clk 0:02:58]}  Ne4 {[%clk 0:02:17]} 17. h4 {[%clk 0:02:57]}  h5 {[%clk 0:02:04]} 18. Ng5 {[%clk 0:02:19]}  Nf6 {[%clk 0:01:52]} 19. Qf3 {[%clk 0:02:08]}  g6 {[%clk 0:01:51]} 20. Kg2 {[%clk 0:01:57]}  b5 {[%clk 0:01:49]} 21. dxc5 {[%clk 0:01:49]}  Qxc5 {[%clk 0:01:48]} 22. Nc2 {[%clk 0:01:49]}  Nf5 {[%clk 0:01:43]} 23. a3 {[%clk 0:01:49]}  a5 {[%clk 0:01:43]} 24. Nd4 {[%clk 0:01:47]}  Rfe8 {[%clk 0:01:36]} 25. Nxf5 {[%clk 0:00:55]}  gxf5 {[%clk 0:01:34]} 26. Rd4 {[%clk 0:00:55]}  Qb6 {[%clk 0:01:30]} 27. Qe2 {[%clk 0:00:54]}  Rc4 {[%clk 0:01:28]} 28. Red1 {[%clk 0:00:51]}  Kg7 {[%clk 0:01:25]} 29. Nf3 {[%clk 0:00:51]}  Rec8 {[%clk 0:01:20]} 30. Ne5 {[%clk 0:00:51]}  R4c5 {[%clk 0:01:14]} 31. R1d3 {[%clk 0:00:48]}  Qc7 {[%clk 0:01:08]} 32. Re3 {[%clk 0:00:46]}  Ng4 {[%clk 0:01:07]} 33. Nxg4 {[%clk 0:00:43]}  hxg4 {[%clk 0:01:07]} 34. f3 {[%clk 0:00:43]}  gxf3+ {[%clk 0:01:05]} 35. Rxf3 {[%clk 0:00:42]}  Rc4 {[%clk 0:01:05]} 36. Rfd3 {[%clk 0:00:42]}  b4 {[%clk 0:01:04]} 37. axb4 {[%clk 0:00:43]}  axb4 {[%clk 0:01:04]} 38. cxb4 {[%clk 0:00:37]}  Rxd4 {[%clk 0:01:03]} 39. Rxd4 {[%clk 0:00:38]}  Qc2 {[%clk 0:01:02]} 40. Kf2 {[%clk 0:00:20]}  Qc1 {[%clk 0:00:45]} 41. Rd1 {[%clk 0:00:18]}  Qc4 {[%clk 0:00:39]} 42. Qe5+ {[%clk 0:00:18]}  Kh7 {[%clk 0:00:33]} 43. Rd2 {[%clk 0:00:12]}  Qc1 {[%clk 0:00:29]} 44. Re2 {[%clk 0:00:11]}  Qh1 {[%clk 0:00:20]} 45. Qf6 {[%clk 0:00:11]}  Qh2+ {[%clk 0:00:19]} 46. Kf3 {[%clk 0:00:12]}  Qh1+ {[%clk 0:00:19]} 47. Kf2 {[%clk 0:00:12]}  Qh2+ {[%clk 0:00:18]} 48. Kf3 {[%clk 0:00:13]}  Qh1+ {[%clk 0:00:19]} 49. Ke3 {[%clk 0:00:13]}  Qg1+ {[%clk 0:00:16]} 50. Kf3 {[%clk 0:00:08]}  Qf1+ {[%clk 0:00:15]} 51. Rf2 {[%clk 0:00:04]}  Qh1+ {[%clk 0:00:13]} 52. Ke3 {[%clk 0:00:04]}  Qe4+ {[%clk 0:00:12]} 53. Kd2 {[%clk 0:00:04]}  Qc2+ {[%clk 0:00:09]} 54. Ke1 {[%clk 0:00:02]}  Qc1+ {[%clk 0:00:09]} 55. Ke2 {[%clk 0:00:02]}  Rc2+ {[%clk 0:00:09]} 56. Kf3 {[%clk 0:00:02]}  Qh1+ {[%clk 0:00:08]} 57. Ke3 {[%clk 0:00:03]}  Qe4# {[%clk 0:00:08]} 0-1


[Site "https://www.chess.com"]